[Event "Titled Tuesday Blitz July 11 Late 2023"]
[White "Merino Garcia, Rafael II"]
[Black "Priasmoro, Novendra"]
[WhiteFideId "2209128"]
[BlackFideId "7105029"]
[WhiteElo "2496"]
[BlackElo "2755"]
[Result "0-1"]
[Round "3"]
[TimeControl "180+2"]
[Date "2023.07.11"]
[WhiteClock "0:00:12"]
[BlackClock "0:00:20"]
[Board "68"]

1. d4 {[%clk 0:03:00]}  d5 {[%clk 0:02:59]} 2. Nf3 {[%clk 0:03:01]}  Nf6 {[%clk 0:02:59]} 3. g3 {[%clk 0:03:00]}  e6 {[%clk 0:02:58]} 4. Bg2 {[%clk 0:03:00]}  Be7 {[%clk 0:02:59]} 5. O-O {[%clk 0:03:00]}  O-O {[%clk 0:03:00]} 6. c4 {[%clk 0:03:00]}  dxc4 {[%clk 0:03:01]} 7. Qc2 {[%clk 0:03:00]}  a6 {[%clk 0:03:01]} 8. a4 {[%clk 0:03:00]}  Bd7 {[%clk 0:03:00]} 9. Bg5 {[%clk 0:03:00]}  Bc6 {[%clk 0:02:59]} 10. Qxc4 {[%clk 0:03:00]}  Nbd7 {[%clk 0:02:51]} 11. Nc3 {[%clk 0:02:50]}  a5 {[%clk 0:02:41]} 12. Qd3 {[%clk 0:02:30]}  h6 {[%clk 0:02:37]} 13. Bxf6 {[%clk 0:02:30]}  Nxf6 {[%clk 0:02:38]} 14. e4 {[%clk 0:02:30]}  Bb4 {[%clk 0:02:37]} 15. Ne5 {[%clk 0:02:27]}  Be8 {[%clk 0:02:32]} 16. Rfd1 {[%clk 0:02:23]}  Qe7 {[%clk 0:02:10]} 17. b3 {[%clk 0:01:57]}  Rd8 {[%clk 0:02:07]} 18. Qc4 {[%clk 0:01:45]}  Nd7 {[%clk 0:01:40]} 19. Qxc7 {[%clk 0:01:30]}  Bd6 {[%clk 0:01:13]} 20. Qxb7 {[%clk 0:01:28]}  Rb8 {[%clk 0:00:56]} 21. Qa7 {[%clk 0:01:08]}  Nxe5 {[%clk 0:00:53]} 22. Qxe7 {[%clk 0:01:07]}  Bxe7 {[%clk 0:00:54]} 23. dxe5 {[%clk 0:01:07]}  Rxb3 {[%clk 0:00:55]} 24. Nb5 {[%clk 0:00:48]}  Bxb5 {[%clk 0:00:51]} 25. axb5 {[%clk 0:00:48]}  Rxb5 {[%clk 0:00:52]} 26. Rd7 {[%clk 0:00:39]}  Bc5 {[%clk 0:00:49]} 27. Rd2 {[%clk 0:00:28]}  Ra8 {[%clk 0:00:45]} 28. Bf1 {[%clk 0:00:27]}  Rb4 {[%clk 0:00:43]} 29. Rda2 {[%clk 0:00:25]}  a4 {[%clk 0:00:42]} 30. Rc1 {[%clk 0:00:23]}  Bb6 {[%clk 0:00:36]} 31. Rc4 {[%clk 0:00:22]}  Rxc4 {[%clk 0:00:31]} 32. Bxc4 {[%clk 0:00:22]}  a3 {[%clk 0:00:32]} 33. Kg2 {[%clk 0:00:22]}  Ra4 {[%clk 0:00:32]} 34. Bd3 {[%clk 0:00:21]}  Bc5 {[%clk 0:00:31]} 35. f4 {[%clk 0:00:21]}  Rd4 {[%clk 0:00:31]} 36. Bb1 {[%clk 0:00:18]}  Rd1 {[%clk 0:00:27]} 37. Bc2 {[%clk 0:00:18]}  Rd2+ {[%clk 0:00:28]} 38. Kf3 {[%clk 0:00:18]}  Bd4 {[%clk 0:00:20]} 39. Bb3 {[%clk 0:00:16]}  Rd3+ {[%clk 0:00:19]} 40. Kg4 {[%clk 0:00:12]}  Rxb3 {[%clk 0:00:20]} 0-1


[Site "https://www.chess.com"]

[Event "Titled Tuesday Blitz July 11 Late 2023"]
[White "Fantastic_Power"]
[Black "Liu, Casper"]
[BlackFideId "1454153"]
[WhiteElo "2744"]
[BlackElo "2494"]
[Result "1-0"]
[Round "3"]
[TimeControl "180+2"]
[Date "2023.07.11"]
[WhiteClock "0:01:05"]
[BlackClock "0:01:27"]
[Board "69"]

1. d4 {[%clk 0:03:00]}  d5 {[%clk 0:02:59]} 2. c4 {[%clk 0:03:00]}  e6 {[%clk 0:02:59]} 3. Nc3 {[%clk 0:02:59]}  Nf6 {[%clk 0:03:00]} 4. cxd5 {[%clk 0:02:59]}  exd5 {[%clk 0:03:01]} 5. Bg5 {[%clk 0:02:59]}  Be7 {[%clk 0:03:01]} 6. e3 {[%clk 0:02:59]}  O-O {[%clk 0:03:02]} 7. Bd3 {[%clk 0:02:59]}  h6 {[%clk 0:03:02]} 8. Bh4 {[%clk 0:02:56]}  Nbd7 {[%clk 0:03:02]} 9. g4 {[%clk 0:02:49]}  c5 {[%clk 0:02:51]} 10. g5 {[%clk 0:02:46]}  hxg5 {[%clk 0:02:51]} 11. Bxg5 {[%clk 0:02:47]}  cxd4 {[%clk 0:02:51]} 12. exd4 {[%clk 0:02:47]}  Re8 {[%clk 0:02:50]} 13. Nge2 {[%clk 0:02:34]}  Nf8 {[%clk 0:02:39]} 14. Rg1 {[%clk 0:02:32]}  Qb6 {[%clk 0:02:01]} 15. Qd2 {[%clk 0:02:16]}  Bb4 {[%clk 0:01:53]} 16. Bxf6 {[%clk 0:01:37]}  Qxf6 {[%clk 0:01:49]} 17. Qg5 {[%clk 0:01:37]}  Qxd4 {[%clk 0:01:35]} 18. O-O-O {[%clk 0:01:34]}  Bxc3 {[%clk 0:01:33]} 19. Nxd4 {[%clk 0:01:32]}  Bxd4 {[%clk 0:01:31]} 20. Bc2 {[%clk 0:01:06]}  Bxf2 {[%clk 0:01:27]} 21. Qxg7# {[%clk 0:01:05]} 1-0


[Site "https://www.chess.com"]

[Event "Titled Tuesday Blitz July 11 Late 2023"]
[White "Urbina Perez, Juan Antonio"]
[Black "Nasuta, Grzegorz"]
[WhiteFideId "2217368"]
[BlackFideId "1141686"]
[WhiteElo "2494"]
[BlackElo "2742"]
[Result "1-0"]
[Round "3"]
[TimeControl "180+2"]
[Date "2023.07.11"]
[WhiteClock "0:00:24"]
[BlackClock "0:00:00"]
[Board "70"]

1. e4 {[%clk 0:03:00]}  c5 {[%clk 0:02:58]} 2. Nf3 {[%clk 0:03:00]}  e6 {[%clk 0:02:58]} 3. c3 {[%clk 0:02:58]}  Nf6 {[%clk 0:02:58]} 4. e5 {[%clk 0:02:57]}  Nd5 {[%clk 0:02:58]} 5. g3 {[%clk 0:02:58]}  d6 {[%clk 0:02:54]} 6. exd6 {[%clk 0:02:59]}  Bxd6 {[%clk 0:02:54]} 7. Bg2 {[%clk 0:03:00]}  O-O {[%clk 0:02:49]} 8. O-O {[%clk 0:03:00]}  Nc6 {[%clk 0:02:37]} 9. d4 {[%clk 0:03:01]}  b6 {[%clk 0:02:33]} 10. c4 {[%clk 0:02:52]}  Nde7 {[%clk 0:02:33]} 11. Nc3 {[%clk 0:02:48]}  cxd4 {[%clk 0:02:26]} 12. Nxd4 {[%clk 0:02:46]}  Bb7 {[%clk 0:02:26]} 13. Ncb5 {[%clk 0:02:42]}  Be5 {[%clk 0:02:21]} 14. Nxc6 {[%clk 0:02:35]}  Bxc6 {[%clk 0:02:16]} 15. Qe2 {[%clk 0:02:32]}  Bxg2 {[%clk 0:02:11]} 16. Kxg2 {[%clk 0:02:33]}  Nc6 {[%clk 0:02:07]} 17. Rd1 {[%clk 0:02:31]}  Qe7 {[%clk 0:02:06]} 18. Be3 {[%clk 0:02:26]}  Rfd8 {[%clk 0:02:00]} 19. Rxd8+ {[%clk 0:02:24]}  Rxd8 {[%clk 0:02:00]} 20. Rc1 {[%clk 0:02:11]}  a6 {[%clk 0:01:54]} 21. Nc3 {[%clk 0:02:10]}  Nd4 {[%clk 0:01:54]} 22. Bxd4 {[%clk 0:02:08]}  Bxd4 {[%clk 0:01:55]} 23. b3 {[%clk 0:01:57]}  Qb7+ {[%clk 0:01:52]} 24. Qe4 {[%clk 0:01:54]}  Qxe4+ {[%clk 0:01:52]} 25. Nxe4 {[%clk 0:01:54]}  Kf8 {[%clk 0:01:21]} 26. Rd1 {[%clk 0:01:46]}  Ke7 {[%clk 0:01:20]} 27. Kf1 {[%clk 0:01:39]}  h6 {[%clk 0:01:16]} 28. Ke2 {[%clk 0:01:37]}  f5 {[%clk 0:01:09]} 29. Nd2 {[%clk 0:01:37]}  Bf6 {[%clk 0:01:08]} 30. Nf3 {[%clk 0:01:35]}  Rc8 {[%clk 0:01:07]} 31. Nd4 {[%clk 0:01:25]}  g6 {[%clk 0:01:02]} 32. a4 {[%clk 0:01:24]}  e5 {[%clk 0:01:02]} 33. Nc2 {[%clk 0:01:17]}  b5 {[%clk 0:00:59]} 34. axb5 {[%clk 0:01:18]}  axb5 {[%clk 0:01:00]} 35. Ne3 {[%clk 0:01:15]}  bxc4 {[%clk 0:00:57]} 36. bxc4 {[%clk 0:01:16]}  Bg5 {[%clk 0:00:52]} 37. Nd5+ {[%clk 0:01:07]}  Ke6 {[%clk 0:00:52]} 38. f4 {[%clk 0:01:07]}  Bd8 {[%clk 0:00:47]} 39. fxe5 {[%clk 0:01:05]}  Kxe5 {[%clk 0:00:47]} 40. Kd3 {[%clk 0:01:04]}  Ra8 {[%clk 0:00:23]} 41. Re1+ {[%clk 0:01:02]}  Kd6 {[%clk 0:00:24]} 42. Kd4 {[%clk 0:00:56]}  Ra2 {[%clk 0:00:23]} 43. h3 {[%clk 0:00:44]}  Rd2+ {[%clk 0:00:13]} 44. Ke3 {[%clk 0:00:44]}  Rg2 {[%clk 0:00:12]} 45. Kf3 {[%clk 0:00:39]}  Rc2 {[%clk 0:00:12]} 46. Nf4 {[%clk 0:00:38]}  g5 {[%clk 0:00:11]} 47. Rd1+ {[%clk 0:00:26]}  Ke7 {[%clk 0:00:04]} 48. Nd5+ {[%clk 0:00:26]}  Kf7 {[%clk 0:00:00]} 49. Ne3 {[%clk 0:00:24]} 1-0


[Site "https://www.chess.com"]

[Event "Titled Tuesday Blitz July 11 Late 2023"]
[White "Taboas Rodriguez, Daniel"]
[Black "Yanchenko, Roman"]
[WhiteFideId "2208466"]
[BlackFideId "4137329"]
[WhiteElo "2490"]
[BlackElo "2738"]
[Result "1/2-1/2"]
[Round "3"]
[TimeControl "180+2"]
[Date "2023.07.11"]
[WhiteClock "0:00:21"]
[BlackClock "0:00:46"]
[Board "71"]

1. d4 {[%clk 0:03:00]}  d5 {[%clk 0:02:58]} 2. Nf3 {[%clk 0:03:00]}  Nf6 {[%clk 0:02:58]} 3. c4 {[%clk 0:03:01]}  c6 {[%clk 0:02:59]} 4. cxd5 {[%clk 0:03:01]}  cxd5 {[%clk 0:02:59]} 5. Nc3 {[%clk 0:03:02]}  Nc6 {[%clk 0:02:59]} 6. Bf4 {[%clk 0:03:02]}  a6 {[%clk 0:03:00]} 7. Rc1 {[%clk 0:03:02]}  e6 {[%clk 0:03:00]} 8. e3 {[%clk 0:03:01]}  Bd6 {[%clk 0:03:00]} 9. Bg3 {[%clk 0:03:01]}  O-O {[%clk 0:03:00]} 10. Bd3 {[%clk 0:03:01]}  h6 {[%clk 0:03:00]} 11. Ne5 {[%clk 0:02:57]}  Bxe5 {[%clk 0:02:54]} 12. dxe5 {[%clk 0:02:57]}  Nd7 {[%clk 0:02:54]} 13. f4 {[%clk 0:02:57]}  f5 {[%clk 0:02:54]} 14. exf6 {[%clk 0:02:46]}  Nxf6 {[%clk 0:02:53]} 15. O-O {[%clk 0:02:45]}  Bd7 {[%clk 0:02:54]} 16. e4 {[%clk 0:02:43]}  Be8 {[%clk 0:02:36]} 17. Bb1 {[%clk 0:02:27]}  Bh5 {[%clk 0:02:34]} 18. Qd2 {[%clk 0:01:57]}  Re8 {[%clk 0:01:56]} 19. e5 {[%clk 0:01:55]}  Nd7 {[%clk 0:01:57]} 20. Bf2 {[%clk 0:01:47]}  Nf8 {[%clk 0:01:55]} 21. Bc5 {[%clk 0:01:45]}  Ne7 {[%clk 0:01:45]} 22. Ne2 {[%clk 0:01:36]}  Bg6 {[%clk 0:01:42]} 23. Bxg6 {[%clk 0:01:30]}  Nfxg6 {[%clk 0:01:42]} 24. Nd4 {[%clk 0:01:29]}  Qd7 {[%clk 0:01:38]} 25. Bd6 {[%clk 0:01:25]}  Rac8 {[%clk 0:01:36]} 26. g3 {[%clk 0:01:25]}  Nc6 {[%clk 0:01:32]} 27. Nf3 {[%clk 0:01:20]}  Nge7 {[%clk 0:01:24]} 28. g4 {[%clk 0:01:15]}  d4 {[%clk 0:01:20]} 29. Nxd4 {[%clk 0:01:10]}  Nxd4 {[%clk 0:01:20]} 30. Qxd4 {[%clk 0:01:11]}  Nd5 {[%clk 0:01:16]} 31. f5 {[%clk 0:01:07]}  Rxc1 {[%clk 0:01:14]} 32. Rxc1 {[%clk 0:01:08]}  Rc8 {[%clk 0:01:15]} 33. Rxc8+ {[%clk 0:00:56]}  Qxc8 {[%clk 0:01:16]} 34. Qc5 {[%clk 0:00:56]}  Qxc5+ {[%clk 0:01:14]} 35. Bxc5 {[%clk 0:00:57]}  Kf7 {[%clk 0:01:14]} 36. Kf2 {[%clk 0:00:54]}  h5 {[%clk 0:00:58]} 37. h3 {[%clk 0:00:49]}  Nf4 {[%clk 0:00:55]} 38. Kg3 {[%clk 0:00:45]}  Nd3 {[%clk 0:00:54]} 39. Bd4 {[%clk 0:00:45]}  hxg4 {[%clk 0:00:54]} 40. hxg4 {[%clk 0:00:45]}  Nc1 {[%clk 0:00:55]} 41. Kf4 {[%clk 0:00:33]}  Nxa2 {[%clk 0:00:54]} 42. Kg5 {[%clk 0:00:33]}  Nb4 {[%clk 0:00:48]} 43. fxe6+ {[%clk 0:00:29]}  Kxe6 {[%clk 0:00:49]} 44. Kg6 {[%clk 0:00:30]}  Nc6 {[%clk 0:00:49]} 45. Bc3 {[%clk 0:00:30]}  Nxe5+ {[%clk 0:00:50]} 46. Bxe5 {[%clk 0:00:21]}  Kxe5 {[%clk 0:00:51]} 47. Kxg7 {[%clk 0:00:22]}  Kf4 {[%clk 0:00:50]} 48. Kf6 {[%clk 0:00:23]}  Kxg4 {[%clk 0:00:50]} 49. Ke5 {[%clk 0:00:23]}  Kf3 {[%clk 0:00:49]} 50. Kd6 {[%clk 0:00:20]}  Ke4 {[%clk 0:00:47]} 51. Kc7 {[%clk 0:00:21]}  b5 {[%clk 0:00:43]} 52. Kb6 {[%clk 0:00:21]}  b4 {[%clk 0:00:40]} 53. Kxa6 {[%clk 0:00:13]}  b3 {[%clk 0:00:38]} 54. Kb5 {[%clk 0:00:13]}  Kd5 {[%clk 0:00:35]} 55. Kb4 {[%clk 0:00:12]}  Kc6 {[%clk 0:00:36]} 56. Kc4 {[%clk 0:00:12]}  Kb6 {[%clk 0:00:36]} 57. Kb4 {[%clk 0:00:12]}  Ka6 {[%clk 0:00:36]} 58. Ka3 {[%clk 0:00:11]}  Ka5 {[%clk 0:00:36]} 59. Kxb3 {[%clk 0:00:10]}  Kb5 {[%clk 0:00:37]} 60. Kc3 {[%clk 0:00:11]}  Kc5 {[%clk 0:00:37]} 61. Kd3 {[%clk 0:00:11]}  Kb4 {[%clk 0:00:38]} 62. Kc2 {[%clk 0:00:11]}  Kc4 {[%clk 0:00:38]} 63. Kc1 {[%clk 0:00:11]}  Kb3 {[%clk 0:00:38]} 64. Kb1 {[%clk 0:00:12]}  Kb4 {[%clk 0:00:39]} 65. Ka2 {[%clk 0:00:13]}  Ka4 {[%clk 0:00:39]} 66. b3+ {[%clk 0:00:13]}  Kb4 {[%clk 0:00:40]} 67. Kb2 {[%clk 0:00:13]}  Kb5 {[%clk 0:00:40]} 68. Kc3 {[%clk 0:00:14]}  Kc5 {[%clk 0:00:41]} 69. b4+ {[%clk 0:00:15]}  Kb5 {[%clk 0:00:41]} 70. Kb3 {[%clk 0:00:16]}  Kb6 {[%clk 0:00:42]} 71. Kc4 {[%clk 0:00:17]}  Kc6 {[%clk 0:00:43]} 72. b5+ {[%clk 0:00:18]}  Kb6 {[%clk 0:00:43]} 73. Kb4 {[%clk 0:00:19]}  Kb7 {[%clk 0:00:44]} 74. Kc5 {[%clk 0:00:19]}  Kc7 {[%clk 0:00:44]} 75. Kc4 {[%clk 0:00:19]}  Kb6 {[%clk 0:00:44]} 76. Kb4 {[%clk 0:00:20]}  Kb7 {[%clk 0:00:45]} 77. Ka5 {[%clk 0:00:20]}  Ka7 {[%clk 0:00:45]} 78. Ka4 {[%clk 0:00:21]}  Kb6 {[%clk 0:00:46]} 79. Kb4 {[%clk 0:00:21]} 1/2-1/2


[Site "https://www.chess.com"]

[Event "Titled Tuesday Blitz July 11 Late 2023"]
[White "benny_aizenberg"]
[Black "Djabri, Massinas"]
[BlackFideId "7905726"]
[WhiteElo "2635"]
[BlackElo "2479"]
[Result "1-0"]
[Round "3"]
[TimeControl "180+2"]
[Date "2023.07.11"]
[WhiteClock "0:02:29"]
[BlackClock "0:02:23"]
[Board "75"]

1. f4 {[%clk 0:03:00]}  d5 {[%clk 0:02:58]} 2. Nf3 {[%clk 0:03:00]}  c5 {[%clk 0:02:57]} 3. g3 {[%clk 0:03:00]}  Nc6 {[%clk 0:02:56]} 4. Bg2 {[%clk 0:03:00]}  f5 {[%clk 0:02:55]} 5. O-O {[%clk 0:02:58]}  Nf6 {[%clk 0:02:55]} 6. d3 {[%clk 0:02:58]}  b6 {[%clk 0:02:53]} 7. c3 {[%clk 0:02:53]}  Bb7 {[%clk 0:02:53]} 8. Nbd2 {[%clk 0:02:53]}  g6 {[%clk 0:02:50]} 9. Qe1 {[%clk 0:02:49]}  Bg7 {[%clk 0:02:49]} 10. e4 {[%clk 0:02:47]}  dxe4 {[%clk 0:02:48]} 11. dxe4 {[%clk 0:02:47]}  fxe4 {[%clk 0:02:46]} 12. Ng5 {[%clk 0:02:47]}  O-O {[%clk 0:02:44]} 13. Ne6 {[%clk 0:02:47]}  Qd6 {[%clk 0:02:38]} 14. Nxf8 {[%clk 0:02:47]}  Rxf8 {[%clk 0:02:38]} 15. Nxe4 {[%clk 0:02:47]}  Nxe4 {[%clk 0:02:38]} 16. Qxe4 {[%clk 0:02:47]}  Na5 {[%clk 0:02:35]} 17. Qe2 {[%clk 0:02:46]}  Bc8 {[%clk 0:02:30]} 18. Be3 {[%clk 0:02:43]}  Bf5 {[%clk 0:02:30]} 19. Rad1 {[%clk 0:02:42]}  Qc7 {[%clk 0:02:30]} 20. b4 {[%clk 0:02:29]}  cxb4 {[%clk 0:02:28]} 21. cxb4 {[%clk 0:02:30]}  Nc4 {[%clk 0:02:23]} 22. Bd5+ {[%clk 0:02:29]} 1-0


[Site "https://www.chess.com"]

[Event "Titled Tuesday Blitz July 11 Late 2023"]
[White "Fiorito, Joaquin"]
[Black "Luong Phuong Hanh"]
[WhiteFideId "180173"]
[BlackFideId "12401013"]
[WhiteElo "2618"]
[BlackElo "2473"]
[Result "1-0"]
[Round "3"]
[TimeControl "180+2"]
[Date "2023.07.11"]
[WhiteClock "0:01:13"]
[BlackClock "0:00:10"]
[Board "78"]

1. d4 {[%clk 0:03:00]}  Nf6 {[%clk 0:02:57]} 2. c4 {[%clk 0:03:01]}  g6 {[%clk 0:02:53]} 3. Nc3 {[%clk 0:03:02]}  d5 {[%clk 0:02:53]} 4. Nf3 {[%clk 0:03:02]}  Bg7 {[%clk 0:02:52]} 5. h4 {[%clk 0:03:02]}  h6 {[%clk 0:02:52]} 6. cxd5 {[%clk 0:02:56]}  Nxd5 {[%clk 0:02:51]} 7. e4 {[%clk 0:02:57]}  Nxc3 {[%clk 0:02:51]} 8. bxc3 {[%clk 0:02:58]}  c5 {[%clk 0:02:51]} 9. Be2 {[%clk 0:02:54]}  Nc6 {[%clk 0:02:44]} 10. Be3 {[%clk 0:02:52]}  Bg4 {[%clk 0:02:40]} 11. d5 {[%clk 0:02:34]}  Bxf3 {[%clk 0:02:29]} 12. Bxf3 {[%clk 0:02:28]}  Bxc3+ {[%clk 0:02:28]} 13. Kf1 {[%clk 0:02:26]}  Nd4 {[%clk 0:02:24]} 14. Rc1 {[%clk 0:02:22]}  Qa5 {[%clk 0:02:19]} 15. Qd3 {[%clk 0:02:22]}  Bb2 {[%clk 0:02:10]} 16. Rb1 {[%clk 0:02:20]}  Qxa2 {[%clk 0:01:26]} 17. Bd1 {[%clk 0:02:18]}  Qa3 {[%clk 0:00:54]} 18. Qxa3 {[%clk 0:02:05]}  Bxa3 {[%clk 0:00:54]} 19. Rxb7 {[%clk 0:02:06]}  Kf8 {[%clk 0:00:45]} 20. g3 {[%clk 0:02:04]}  h5 {[%clk 0:00:45]} 21. Kg2 {[%clk 0:01:57]}  Kg7 {[%clk 0:00:45]} 22. Ba4 {[%clk 0:01:51]}  Kf8 {[%clk 0:00:20]} 23. Ra1 {[%clk 0:01:42]}  Bb4 {[%clk 0:00:17]} 24. Bxd4 {[%clk 0:01:43]}  cxd4 {[%clk 0:00:18]} 25. Rxb4 {[%clk 0:01:43]}  Kg7 {[%clk 0:00:18]} 26. Rxd4 {[%clk 0:01:43]}  Kf6 {[%clk 0:00:18]} 27. Bc6 {[%clk 0:01:43]}  Rab8 {[%clk 0:00:17]} 28. Rd2 {[%clk 0:01:42]}  Rb4 {[%clk 0:00:16]} 29. Kf3 {[%clk 0:01:40]}  Rhb8 {[%clk 0:00:16]} 30. Rxa7 {[%clk 0:01:39]}  Rb3+ {[%clk 0:00:17]} 31. Kf4 {[%clk 0:01:35]}  R8b4 {[%clk 0:00:17]} 32. Ra6 {[%clk 0:01:24]}  Kg7 {[%clk 0:00:17]} 33. d6 {[%clk 0:01:17]}  f5 {[%clk 0:00:17]} 34. dxe7 {[%clk 0:01:17]}  fxe4 {[%clk 0:00:17]} 35. e8=Q {[%clk 0:01:16]}  e3+ {[%clk 0:00:17]} 36. Ke5 {[%clk 0:01:15]}  exd2 {[%clk 0:00:16]} 37. Qe7+ {[%clk 0:01:14]}  Kh6 {[%clk 0:00:16]} 38. Qd8 {[%clk 0:01:12]}  Rb8 {[%clk 0:00:14]} 39. Qxd2+ {[%clk 0:01:12]}  Kh7 {[%clk 0:00:10]} 40. Ra7+ {[%clk 0:01:13]} 1-0


[Site "https://www.chess.com"]

[Event "Titled Tuesday Blitz July 11 Late 2023"]
[White "profedechess93"]
[Black "Estrada Nieto, Julian"]
[BlackFideId "5101018"]
[WhiteElo "2617"]
[BlackElo "2470"]
[Result "1-0"]
[Round "3"]
[TimeControl "180+2"]
[Date "2023.07.11"]
[WhiteClock "0:00:15"]
[BlackClock "0:00:00"]
[Board "79"]

1. e4 {[%clk 0:03:00]}  e5 {[%clk 0:02:59]} 2. Nf3 {[%clk 0:03:00]}  Nc6 {[%clk 0:03:00]} 3. Bc4 {[%clk 0:03:00]}  Bc5 {[%clk 0:02:59]} 4. b4 {[%clk 0:03:00]}  Bb6 {[%clk 0:02:58]} 5. c3 {[%clk 0:03:00]}  Nf6 {[%clk 0:02:58]} 6. d3 {[%clk 0:03:01]}  d6 {[%clk 0:02:57]} 7. a4 {[%clk 0:03:01]}  a6 {[%clk 0:02:58]} 8. a5 {[%clk 0:03:01]}  Ba7 {[%clk 0:02:58]} 9. Qb3 {[%clk 0:02:56]}  O-O {[%clk 0:02:52]} 10. Bg5 {[%clk 0:02:53]}  h6 {[%clk 0:02:51]} 11. Bh4 {[%clk 0:02:36]}  g5 {[%clk 0:02:51]} 12. Nxg5 {[%clk 0:02:36]}  hxg5 {[%clk 0:02:50]} 13. Bxg5 {[%clk 0:02:36]}  Kg7 {[%clk 0:02:49]} 14. h4 {[%clk 0:02:26]}  Ne7 {[%clk 0:02:39]} 15. Nd2 {[%clk 0:02:18]}  c6 {[%clk 0:02:37]} 16. Qc2 {[%clk 0:02:07]}  d5 {[%clk 0:02:22]} 17. Bb3 {[%clk 0:02:07]}  Ng4 {[%clk 0:02:04]} 18. d4 {[%clk 0:00:59]}  f6 {[%clk 0:02:00]} 19. Be3 {[%clk 0:00:59]}  Nxe3 {[%clk 0:01:51]} 20. fxe3 {[%clk 0:01:00]}  Bg4 {[%clk 0:01:44]} 21. Nf3 {[%clk 0:00:50]}  Qd6 {[%clk 0:01:36]} 22. O-O-O {[%clk 0:00:48]}  Rad8 {[%clk 0:01:11]} 23. h5 {[%clk 0:00:38]}  Rh8 {[%clk 0:00:55]} 24. Rdf1 {[%clk 0:00:34]}  Rh6 {[%clk 0:00:45]} 25. Nh4 {[%clk 0:00:35]}  exd4 {[%clk 0:00:39]} 26. exd4 {[%clk 0:00:34]}  Qg3 {[%clk 0:00:35]} 27. e5 {[%clk 0:00:29]}  Rf8 {[%clk 0:00:28]} 28. Qd2 {[%clk 0:00:23]}  Kh8 {[%clk 0:00:20]} 29. Qxh6+ {[%clk 0:00:22]}  Kg8 {[%clk 0:00:19]} 30. Bc2 {[%clk 0:00:22]}  f5 {[%clk 0:00:15]} 31. Qg5+ {[%clk 0:00:21]}  Kf7 {[%clk 0:00:16]} 32. Nxf5 {[%clk 0:00:22]}  Nxf5 {[%clk 0:00:14]} 33. Rxf5+ {[%clk 0:00:21]}  Ke8 {[%clk 0:00:13]} 34. Rxf8+ {[%clk 0:00:21]}  Kxf8 {[%clk 0:00:12]} 35. Qf6+ {[%clk 0:00:21]}  Ke8 {[%clk 0:00:11]} 36. Bg6+ {[%clk 0:00:21]}  Kd7 {[%clk 0:00:12]} 37. Qd6+ {[%clk 0:00:18]}  Kc8 {[%clk 0:00:09]} 38. Qf8+ {[%clk 0:00:18]}  Kd7 {[%clk 0:00:09]} 39. Qg7+ {[%clk 0:00:17]}  Kc8 {[%clk 0:00:08]} 40. Bf5+ {[%clk 0:00:16]}  Bxf5 {[%clk 0:00:07]} 41. Qxg3 {[%clk 0:00:15]}  Bb8 {[%clk 0:00:08]} 42. h6 {[%clk 0:00:15]}  Bh7 {[%clk 0:00:00]} 43. Qg7 {[%clk 0:00:15]} 1-0


[Site "https://www.chess.com"]

[Event "Titled Tuesday Blitz July 11 Late 2023"]
[White "Baches Garcia, Guillermo"]
[Black "Ambartsumova, Karina"]
[WhiteFideId "2209764"]
[BlackFideId "4166299"]
[WhiteElo "2461"]
[BlackElo "2612"]
[Result "1/2-1/2"]
[Round "3"]
[TimeControl "180+2"]
[Date "2023.07.11"]
[WhiteClock "0:00:44"]
[BlackClock "0:00:19"]
[Board "81"]

1. e4 {[%clk 0:03:00]}  e5 {[%clk 0:02:52]} 2. Nf3 {[%clk 0:03:01]}  Nc6 {[%clk 0:02:51]} 3. Nc3 {[%clk 0:03:01]}  Nf6 {[%clk 0:02:51]} 4. d4 {[%clk 0:03:02]}  exd4 {[%clk 0:02:50]} 5. Nxd4 {[%clk 0:03:02]}  Bb4 {[%clk 0:02:50]} 6. Nxc6 {[%clk 0:03:03]}  bxc6 {[%clk 0:02:50]} 7. Bd3 {[%clk 0:03:04]}  O-O {[%clk 0:02:50]} 8. O-O {[%clk 0:03:03]}  d5 {[%clk 0:02:50]} 9. Bd2 {[%clk 0:03:04]}  Bg4 {[%clk 0:02:45]} 10. Qc1 {[%clk 0:03:01]}  Bxc3 {[%clk 0:02:18]} 11. Bxc3 {[%clk 0:03:01]}  Nxe4 {[%clk 0:02:18]} 12. Bxe4 {[%clk 0:02:58]}  dxe4 {[%clk 0:02:19]} 13. Qf4 {[%clk 0:02:47]}  Qd7 {[%clk 0:02:00]} 14. Qxe4 {[%clk 0:02:41]}  Bf5 {[%clk 0:01:56]} 15. Qe5 {[%clk 0:02:29]}  f6 {[%clk 0:01:55]} 16. Qg3 {[%clk 0:02:28]}  Bxc2 {[%clk 0:01:50]} 17. Rfe1 {[%clk 0:02:25]}  Rad8 {[%clk 0:01:33]} 18. h4 {[%clk 0:02:18]}  Bg6 {[%clk 0:01:22]} 19. Re3 {[%clk 0:02:11]}  Rfe8 {[%clk 0:01:12]} 20. Rae1 {[%clk 0:02:09]}  Rxe3 {[%clk 0:00:54]} 21. Qxe3 {[%clk 0:02:05]}  Re8 {[%clk 0:00:48]} 22. Qxa7 {[%clk 0:01:54]}  Rxe1+ {[%clk 0:00:48]} 23. Bxe1 {[%clk 0:01:54]}  Qd1 {[%clk 0:00:46]} 24. Qb8+ {[%clk 0:01:43]}  Kf7 {[%clk 0:00:45]} 25. Qxc7+ {[%clk 0:01:43]}  Kg8 {[%clk 0:00:44]} 26. Qa5 {[%clk 0:01:33]}  Be4 {[%clk 0:00:25]} 27. f3 {[%clk 0:01:10]}  Bd5 {[%clk 0:00:22]} 28. Qd8+ {[%clk 0:01:03]}  Kf7 {[%clk 0:00:22]} 29. Qd7+ {[%clk 0:01:02]}  Kg6 {[%clk 0:00:20]} 30. Qg4+ {[%clk 0:01:00]}  Kf7 {[%clk 0:00:19]} 31. Qd7+ {[%clk 0:00:57]}  Kg6 {[%clk 0:00:19]} 32. Qg4+ {[%clk 0:00:43]}  Kf7 {[%clk 0:00:19]} 33. Qd7+ {[%clk 0:00:44]} 1/2-1/2


[Site "https://www.chess.com"]